Cogmind - Beta 15 @@@ ROGUE MODE // 2025.08.15 @ 10:49:28 Player: Dick Johnson Result: Self-destructed Performance ------------- Evolutions (1) 500 Regions Visited (2) 400 Robots Destroyed (15) 75 Value Destroyed (413) 413 Prototype IDs (2) 40 Alien Tech Used (0) 0 Bonus (0) 0 TOTAL SCORE: 1428 Bonus ------- None Cogmind --------- Core Integrity 304/400 Matter 300/300 Energy 125/125 System Corruption 0% Temperature Cool (0) Movement Walking (190) Ox1 Location -9/Materials Parts ------- > --- POWER (1) -------- Light Ion Engine > --- PROPULSION (3) --- Aluminum Leg > --- UTILITY (3) ------ Small Storage Unit > --- WEAPON (2) ------- Heavy EM Pulse Gun > --- INVENTORY (8) ---- Medium Storage Unit Heavy EM Pulse Gun Particle Gun Particle Gun Light Assault Rifle Mining Laser Plasma Cutter Peak State ------------ > --- POWER ------------ Light Ion Engine > --- PROPULSION ------- Wheel Wheel > --- UTILITY ---------- Small Storage Unit > --- WEAPON ----------- EM Shotgun EM Shotgun > --- INVENTORY -------- Aluminum Leg EM Shotgun EM Shotgun Assault Rifle Light Assault Rifle Mining Laser Plasma Cutter [Rating: 9] Favorites ----------- Power Light Ion Engine Engine Light Ion Engine Propulsion Wheel Leg Aluminum Leg Wheel Wheel Utility Small Storage Unit Storage Small Storage Unit Weapon Heavy EM Pulse Gun Energy Gun Heavy EM Pulse Gun Ballistic Gun Light Assault Rifle Build | -11 -10 -9 ------- Run | Yrd Mat Mat Slots Evolved 2 | . . 2 Power . | . . . Propulsion 1 | . . 1 Utility 1 | . . 1 Weapon . | . . . Parts Attached 17 | 6 6 5 Power 4 | 1 1 2 Engine 4 | 1 1 2 Core . | . . . Reactor . | . . . Propulsion 4 | 2 . 2 Treads . | . . . Leg 2 | . . 2 Wheel 2 | 2 . . Hover . | . . . Flight . | . . . Utility 1 | 1 . . Device . | . . . Storage 1 | 1 . . Processor . | . . . Hackware . | . . . Protection . | . . . Artifact . | . . . Weapon 8 | 2 5 1 Energy Gun 5 | . 4 1 Energy Cannon . | . . . Ballistic Gun 3 | 2 1 . Ballistic Cannon . | . . . Launcher . | . . . Special Weapon . | . . . Impact Weapon . | . . . Slashing Weapon . | . . . Piercing Weapon . | . . . Special Melee Weapon . | . . . Unidentified Prototypes . | . . . Parts Lost 5 | . 1 4 Power 2 | . 1 1 Propulsion 2 | . . 2 Utility . | . . . Weapon 1 | . . 1 Highest Loss Streak 1 | . 1 1 To Critical Strikes . | . . . Average Backups 5 | 2 5 6 Power . | . . . Propulsion . | . 1 . Utility . | . . . Weapon 3 | 1 2 4 Tool/Special . | . . . Unused Backups 10 | . 4 6 Power . | . . . Propulsion 1 | . 1 . Utility 1 | . . 1 Weapon 6 | . 2 4 Tool/Special 2 | . 1 1 Average Slot Usage (%) 72 | . 78 63 Engine 8 | . 7 11 Leg 6 | . . 17 Wheel 18 | . 28 3 Storage 12 | . 14 11 Energy Gun 15 | . 11 20 Ballistic Gun 9 | . 16 . Peak Build Rating 9 | 6 9 9 Average Rating 7 | 4 6 8 On Entrance 5 | . 6 9 Naked Turns . | . . . Heaviest Build 16 | 11 14 16 Greatest Support 20 | 20 20 20 Greatest Overweight (x) 1 | . . 1 Average Overweight (x) . | . . . Largest Inventory Capacity 8 | 8 8 8 Average Capacity 7 | 6 8 8 Most Carried 8 | 5 8 8 Average Carried 5 | 1 5 6 Final Capacity 8 | 8 8 8 Final Carried 7 | 2 7 7 Class Distribution -------------------- 100% | Mutant Dominant Class ---------------- Mutant | -10/Materials Mutant | -9/Materials Resources | -11 -10 -9 ----------- Run | Yrd Mat Mat Matter Collected 416 | 213 163 40 Remotely . | . . . Salvage Created 535 | . 128 407 Parts 28 | . 5 23 Haulers Intercepted . | . . . Recyclers Shooed . | . . . Parts Field Recycled . | . . . Retrieved Matter . | . . . Parts Self-Destructed . | . . . Prevented . | . . . Kills | -11 -10 -9 ------- Run | Yrd Mat Mat Combat Hostiles Destroyed 14 | . 4 10 Guns 10 | . 4 6 AOE 3 | . . 3 Classes Destroyed 4 | . 2 2 Worker 1 | . . 1 Swarmer 5 | . 1 4 Grunt 6 | . 3 3 Sentry 3 | . . 3 Best Kill Streak 6 | . 3 6 Combat Bots Only 6 | . 3 6 Max Kills in Single Turn 2 | . 1 2 Gunslinging . | . . . Exploded 2 | . . 2 Melee . | . . . Uniques/NPCs Destroyed . | . . . Combat | -11 -10 -9 -------- Run | Yrd Mat Mat Hostile Shots Fired 86 | . 16 70 Missed 28 | . 1 27 Hits 58 | . 15 43 Projectile 58 | . 15 43 Critical Strikes 1 | . . 1 Damage Taken 718 | . 159 559 Core 107 | . 11 96 Absorbed by Shields . | . . . Core Remaining (%) 97 | 100 95 . Volleys Fired 40 | . 16 24 Largest 2 | . 2 2 Hottest 90 | . 40 90 Shots Fired 77 | . 32 45 Gun 77 | . 32 45 Cannon . | . . . Launcher . | . . . Special . | . . . Kinetic 32 | . 32 . Thermal . | . . . Explosive . | . . . Electromagnetic 45 | . . 45 Robot Hit Streak 12 | . 6 12 Robot Miss Streak 5 | . 2 5 Penetration Max . | . . . Secondary Targets . | . . . Shots Hit Robots 48 | . 19 29 Core Hits 20 | . 8 12 Critical Kills . | . . . Critical Parts Destroyed 1 | . 1 . Critical Strikes 2 | . 1 1 Destroy 1 | . 1 . Corrupt 1 | . . 1 Melee Attacks . | . . . Impact . | . . . Slashing . | . . . Piercing . | . . . Sneak Attacks . | . . . Combat Hostiles . | . . . Follow-up Attacks . | . . . Damage Inflicted 770 | . 211 559 Guns 623 | . 211 412 Cannons . | . . . Explosions 143 | . . 143 Melee . | . . . Ramming 4 | . . 4 Kinetic 211 | . 211 . Thermal 143 | . . 143 Explosive . | . . . Electromagnetic 412 | . . 412 Impact . | . . . Slashing . | . . . Piercing . | . . . Highest Corruption . | . . . Average Corruption . | . . . Corruption Purged . | . . . Corruption Blocked . | . . . Overload Shots . | . . . Overflow Damage 18 | . . 18 Projectiles . | . . . Explosions 18 | . . 18 Melee . | . . . Knockbacks . | . . . Impact . | . . . Kinetic . | . . . Secondary . | . . . Self-Inflicted Damage 36 | . . 36 Shots 1 | . . 1 Rammed . | . . . Targets Rammed 1 | . . 1 Kicked 1 | . . 1 Crushed . | . . . Highest Temperature 193 | . 12 193 Average Temperature 69 | . 7 79 Received Heat Transfer 243 | . 78 165 Siege Activations . | . . . Martial Activations . | . . . Shielding Activations . | . . . Robots Disrupted . | . . . Combat Hostiles . | . . . Robots Corrupted 1 | . . 1 Combat Hostiles 1 | . . 1 Parts Fried 2 | . . 2 Impact Corruptions . | . . . Robots Melted . | . . . Combat Hostiles . | . . . Parts Melted . | . . . Heat Transferred 100 | . . 100 Parts Sabotaged . | . . . Parts Stolen . | . . . Parts Stripped . | . . . Power Chain Reactions 2 | . . 2 Alert | -11 -10 -9 ------- Run | Yrd Mat Mat Maximum Alert Level 1 | . . 1 Low Security (%) 88 | 100 100 69 Level 1 11 | . . 30 Level 2 . | . . . Level 3 . | . . . Level 4 . | . . . Level 5 . | . . . High Security . | . . . Max Security . | . . . Peak Influence 228 | . 115 228 Initial . | . . . Average 80 | . 44 145 Influence Increases 506 | . 183 323 Destroy 0b10 Robot/C 280 | . 80 200 Destroy 0b10 Robot/NC 5 | . . 5 Destroy Leader 60 | . 10 50 Successful Hack 18 | . 18 . Disable Machine 15 | . . 15 Destroy Structure 8 | . . 8 Lose Combat Pursuer 120 | . 75 45 Influence Decreases 333 | . 183 150 Time Decay 293 | . 173 120 Lost Part 40 | . 10 30 Squads Dispatched 1 | . 1 . Investigation 1 | . 1 . Extermination . | . . . Reinforcement . | . . . Assault . | . . . Garrison . | . . . Intercept . | . . . Searches Triggered . | . . . Construction Impeded . | . . . Haulers Reinforced . | . . . Active Scanning Responses . | . . . Cargo Convoy Interrupts . | . . . Stealth | -11 -10 -9 --------- Run | Yrd Mat Mat Distress Signals 3 | . 3 . Communications Jammed . | . . . Distress Signals . | . . . Times Spotted 31 | . 11 20 Peak Tracking Total 6 | . 6 6 Tactical Retreats 5 | . 3 2 Traps | -11 -10 -9 ------- Run | Yrd Mat Mat Traps Triggered . | . . . Indirectly . | . . . Trap Hack Attempts . | . . . Triggered . | . . . Disarmed . | . . . Reprogrammed . | . . . Reused . | . . . Traps Extracted . | . . . Installed . | . . . Triggered . | . . . Machines | -11 -10 -9 ---------- Run | Yrd Mat Mat Machines Disabled 1 | . . 1 Max in Single Turn 1 | . . 1 Machines Repaired . | . . . Machines Dismantled . | . . . Machines Sabotaged . | . . . Overloaded Fab Kills . | . . . Hacking | -11 -10 -9 --------- Run | Yrd Mat Mat Machines Accessed 8 | . 4 4 Terminals 7 | . 4 3 Fabricators . | . . . Repair Stations . | . . . Recycling Units 1 | . . 1 Scanalyzers . | . . . Garrison Access . | . . . Total Hacks 18 | . 9 9 Successful 10 | . 4 6 Failed 8 | . 5 3 Catastrophic . | . . . Database Lockouts . | . . . Manual . | . . . Terminals 17 | . 9 8 Fabricators . | . . . Repair Stations . | . . . Recycling Units 1 | . . 1 Scanalyzers . | . . . Garrison Access . | . . . Terminal Hacks 9 | . 4 5 Prototype ID Bank 1 | . 1 . Emergency Access Points 1 | . 1 . Alert Level 1 | . . 1 Locate Traps 1 | . . 1 Dispatch Records 1 | . 1 . Investigation Status 1 | . . 1 Zone Layout 3 | . 1 2 Fabricator Hacks . | . . . Repair Station Hacks . | . . . Recycling Unit Hacks 1 | . . 1 Report Inventory 1 | . . 1 Scanalyzer . | . . . Garrison Access Hacks . | . . . Unauthorized Hacks . | . . . Terminals . | . . . Fabricators . | . . . Repair Stations . | . . . Recycling Units . | . . . Scanalyzers . | . . . Garrison Access . | . . . Data Cores Recovered 1 | . 1 . Used . | . . . Hacking Detections 6 | . 4 2 Full Trace Events . | . . . Feedback Events . | . . . Feedback Blocked . | . . . Robot Schematics Acquired . | . . . Robots Built . | . . . Authchips . | . . . Time . | . . . Total Robot Build Rating . | . . . Part Schematics Acquired . | . . . Parts Built . | . . . Authchips . | . . . Time . | . . . Total Part Build Rating . | . . . Parts Repaired . | . . . Time . | . . . Parts Recycled . | . . . Recycled Matter . | . . . Retrieved Matter . | . . . Retrieved Components . | . . . Parts Scanalyzed . | . . . Part Schematics Acquired . | . . . Parts Damaged . | . . . Bothacking | -11 -10 -9 ------------ Run | Yrd Mat Mat Used RIF Installer . | . . . Robots Hacked . | . . . Non-combat . | . . . Combat . | . . . Robot Hacks Applied . | . . . Relay Couplers Released . | . . . Fabnet Peak Effective % . | . . . Robots Rewired . | . . . Allies Hacked . | . . . Hacks Repelled . | . . . Allies | -11 -10 -9 -------- Run | Yrd Mat Mat Total Allies . | . . . Largest Group . | . . . Highest-Rated Group . | . . . Highest-Rated Ally . | . . . Total Orders . | . . . Ally Attacks . | . . . Total Damage . | . . . Kills . | . . . Allies Corrupted . | . . . Allies Melted . | . . . Intel | -11 -10 -9 ------- Run | Yrd Mat Mat Active Infowar (turns) . | . . . Robot Analysis Total . | . . . Derelict Logs Recovered . | . . . Drone Launches . | . . . Drone Recoveries . | . . . Exploration | -11 -10 -9 ------------- Run | Yrd Mat Mat Turns Passed 757 | 39 433 285 Spaces Moved 651 | 34 436 181 Core 7 | 7 . . Treads . | . . . Legs 138 | . . 138 Wheels 506 | 27 436 43 Hover . | . . . Flight . | . . . Fastest Speed 50 | 50 80 80 Average Speed 88 | 73 80 110 Slowest Speed 120 | 80 80 120 Overloaded Moves . | . . . Propulsion Burnouts . | . . . Robots Hopped . | . . . Potential Cave-ins . | . . . Cave-ins Triggered . | . . . Exploration Rate (%) 35 | 3 75 27 Regions Visited 2 Branch Regions . Pre-discovered Areas . | . . . Known Exits Taken . | . . . Unknown Exits Taken 2 | 1 1 . Scrap Searched . | . . . Spaces Dug . | . . . Terrain Destroyed 6 | . . 6 Melee . | . . . Projectile . | . . . AOE 6 | . . 6 Terrain Rammed . | . . . Walls Destroyed . | . . . Machines Disabled . | . . . Actions | -11 -10 -9 --------- Run | Yrd Mat Mat Total 761 | 47 493 221 Wait 15 | . 14 1 Move 649 | 33 435 181 Hop . | . . . Pick Up 27 | 8 14 5 Fast Attach . | . . . Attach 11 | 6 3 2 Detach . | . . . Swap 6 | . 3 3 Drop 12 | . 8 4 Fire 40 | . 16 24 Melee . | . . . Ram . | . . . Kick 1 | . . 1 Crush . | . . . Escape Stasis . | . . . Rewire . | . . . Trap . | . . . Miscellaneous . | . . . Route ------- -11/Scrapyard -10/Materials (discovered 4 exits: *Mat x3 / [*Sub]) -9/Materials (discovered 1 exit: [*Min]) History --------- Turn | Location | Event 7 | -11/Scrapyard | Discovered new exit (range 15) 40 | -11/Scrapyard | Entered Materials 41 | -10/Materials | Met a group of wandering Federalists 116 | -10/Materials | Discovered new exit (range 11) 200 | -10/Materials | Discovered new exit (range 3) 313 | -10/Materials | Build established: Mutant 403 | -10/Materials | Discovered new exit (range 8) 438 | -10/Materials | Discovered new exit (range 10) 473 | -10/Materials | Entered another Materials area 473 | -9/Materials | Evolved 2 slots: Propulsion x1, Utility x1 640 | -9/Materials | Discovered new exit (range 14) 758 | -9/Materials | Self-destructed Last Messages --------------- 00631_ Connecting with Terminal... >>Layout(Zone) Retrieving Zone 5B layout... Downloaded map data. >>Traps(Locate) Found 6 traps in 1 array: 6x Shock Trap Map updated. >>Enumerate(Investigations) Retrieving latest reported positions... No active investigation squads found. 00640_ EXIT=FOUND 00640_ U-05 Engineer lays Concrete. 00646_ K-01 Serf collects debris. 00647_ R-06 Scavenger collects Med. Matter Pod. 00702_ Acquired Med. Storage Unit. 00708_ Connecting with Terminal... 00712_ Hvy. EM Pulse Gun destroyed. 00714_ T-07 Excavator is excavating. 00752_ Aluminum Leg destroyed. Map ----- +----------------------------------------------------+ | ????????????????????????????????????????????? | | ????????????????????????????????????????????? | | ????????????????????????????????????????????? | | ????????????????????????????????????????????? | | ????????????????????????????????????????????? | | ??????????????????? ????????????????????????? | | ??????????????????? ????????????????????????? | | ??????????????????? ????????????????????????? | | ??????????????????? ????????????????????????? | | ??????????????????? ????????????????????????? | | ??????????????????? ????????????????????????? | | ??????????????????? ????????????????????????? | | ??????????????????# #???????????????????????? | | ??????????????????# #???????????????????????? | | ??????????????????# #???????????????????????? | | ??????????????????# #???????????????????????? | | ??????????????????# #???????????????????????? | | ??????????????????# #??????????? ?????????? | | ??????????????????# #??????????# ?????????? | | ??????????????????# #??????????# ?????????? | | ?????????????????## ##?????????# #????????? | | ?????????????????# ########### ????????? | | ?????????????????# " ss ## #????????? | | ?????????????????# #s """ ## #????????? | | ?????????????????## ## s """ ## ##???????? | | ??????????????????# ## @""" # #???????? | | ????? ??????????# ## t # #???????? | | ????# ??????????# ## """ + #???????? | | ##### # #??# ## """ # #???????? | | ##### ########??# ## """ # ????????? | | # #?????????# ## ## ########## | | "" # #####?????# ############ # # | | """ # #????## ##?????????# # """" # | | R" # #????# ########### + """" # | | """ # #????# # """" # | | + #????# ########### # # | | # #????##########????# # " " # | | ##### #????????# """""???# # "T" # | | #####????????# """"""" # # """ # | | ########?????# """"""" # # # | | # #?????# """"""" + #####/#### | | ##### # #?????# """"""" # #???# #??? | | ##### # ####### # #???# #??? | | T ## + "T" + + # #???# #??? | | + # """ ####### # #???# #??? | | ^ ## # #?????#####+##### #???# #??? | | ####+###+############## #???# #???# #??? | | # % ## # #???# ##### #??? | | ^ # "S = ## """ # #???# #??? | | # """ = ## """ # ##### #######??? | +----------------------------------------------------+ Best States ------------- Heat Dissipation 28 Energy Generation 10 Energy Capacity 250 Matter Stores 300 Matter Capacity 300 Sight Range 16 Terrain Scan Density 10 Evasion (%) 55 Item Schematics ----------------- None Robot Schematics ------------------ None Fabricated ------------ Nothing Repaired ---------- Nothing Alien Tech Used ----------------- None Achievements -------------- Power Corrupts Challenges ------------ None Game ------ Seed ChainPropulsionSabre Manual? 0 Play Time 00:51:57 Cumulative 8.0 hours Start 2025.08.15 @ 09:06:44 End 2025.08.15 @ 10:49:28 Sessions 1 Manual Loads 0 Difficulty Rogue Special Mode None Game No. 11 Rogue 11 Adventurer 0 Explorer 0 Win Type - Total 0 Types 0/0/0/0/0/0/0/0/0/0 Lore% 2 Gallery% 6 Achievement% 9 Wizard Run 0 Options --------- Layout 0 ASCII 0 Keyboard 0 Movement Numpad Keybinds 0 Fullscreen 1 Font 18/SmallcapsGlow Map View 76x50 Zoom Use 0% Tactical HUD 1 Map Filters NONE Filters NONE Steam 1 RUN: 98ccdf3c-a7e8-4e15-b99a-090a055cdce5